Workbook

Sheet Sheet1
A1: The Area of a Circle + a Square Problem
B3: This DIGMath module lets you investigate
B4: the calculus problem of finding
B5: where to cut a length of wire
B6: to form a circle and a square
B7: that have the greatest or the least area.
A11: What is the total length Lof the wire?
B12: (10 - 100 square inches) | E12: Length = | F12: =D13 -> 70
D13: 70 | E13: =#REF!+D13*(#REF!-#REF!)/100 -> 
L14: The total area function = | O14: x2/16 + (L - x)2/4p
A16: ="When x = "&TEXT(x0,"0.0") &" inches are used for the square, " -> When x = 58.3 inches are used for the square, | K16: How many inches (10 to 100) to be used for the square: x0 = | Q16: =10+O18/10 -> 58.3 | R16: inches
A17: =" so that L - x = "&TEXT(L - x0,"0.0") &" inches are used for the circle, " -> so that L - x = 11.7 inches are used for the circle,
A18: =" then the total area is "&TEXT(P19,"0.00") &" square inches " -> then the total area is 223.32 square inches | O18: 483 | P18: =Sheet2!H7+O18*(Sheet2!H8-Sheet2!H7)/100 -> 444.7
N19: The total area is then | P19: =x0^2/16+(L-x0)^2/4/PI() -> 223.32 | Q19: square inches
N21: The value of the derivative is y' = | Q21: =Sheet2!I29 -> 5.2548942
A24: Click each item below for suggestions and investigations
C25: Item 1
C26: Item 2
C27: Item 3
A31: To access/download all the DIGMath Apps for Calculus
A32: Click this link: | C32: DIGMath for Calculus
A34: Created by: Sheldon P. Gordon
A35: Farmingdale State College
A36: Development of this module was supported by the
A37: NSF's Division of Undergraduate Education
A38: under grants DUE-0310123 and DUE-0442160.

Sheet Sheet2
B1: x | C1: f(x) | D1: f'(x) | G1: xl= | H1: =IF(x0<Sheet2!H7+80*Sheet2!H5,Sheet2!H7,x0-80*Sheet2!H5) -> 51.1 | I1: =LOOKUP(Sheet1!P18,Sheet2!B3:B1002,Sheet2!C3:C1002)+LOOKUP(Sheet1!P18,Sheet2!B3:B1002,Sheet2!D3:D1002)*(H1-Sheet1!P18) -> -6102.681844 | J1: "=yl
G2: xr= | H2: =IF(Sheet1!$P$18>Sheet2!H8-80*Sheet2!H5,Sheet2!H8,Sheet1!P18+80*Sheet2!H5) -> 100 | I2: =LOOKUP(Sheet1!P18,Sheet2!B3:B1003,Sheet2!C3:C1003)+LOOKUP(Sheet1!P18,Sheet2!B3:B1003,Sheet2!D3:D1003)*(H2-Sheet1!P18) -> -5257.951542 | J2: "=yR
A3: 0 | B3: =10 -> 10.0 | C3: =x^2/16+(L-x)^2/4/PI() -> 292.7288976 | D3: =x/8-(L-x)/2/PI() -> -8.299296586 | L3: x2/16 + (L - x)/4p
A4: 1 | B4: =B3+dd -> 10.9 | C4: 285.3746134 | D4: -8.043557137 | G4: dd = | H4: =0.9 -> 0.9
A5: 2 | B5: 11.8 | C5: 278.2504947 | D5: -7.787817688 | G5: delta x = | H5: =(xMax-xMin)/1000 -> 0.09
A6: 3 | B6: 12.7 | C6: 271.3565416 | D6: -7.532078239
A7: 4 | B7: 13.6 | C7: 264.6927539 | D7: -7.27633879 | G7: xMin = | H7: 10 | I7: =C3 -> 292.7288976
A8: 5 | B8: 14.5 | C8: 258.2591317 | D8: -7.020599342 | G8: xMax = | H8: 100 | I8: =C103 -> 696.6197244
A9: 6 | B9: 15.4 | C9: 252.0556751 | D9: -6.764859893
A10: 7 | B10: 16.3 | C10: 246.0823839 | D10: -6.509120444
A11: 8 | B11: 17.2 | C11: 240.3392583 | D11: -6.253380995 | G11: Point
A12: 9 | B12: 18.1 | C12: 234.8262981 | D12: -5.997641546 | G12: =x0 -> 58.3 | H12: 0
A13: 10 | B13: 19.0 | C13: 229.5435035 | D13: -5.741902098
A14: 11 | B14: 19.9 | C14: 224.4908744 | D14: -5.486162649 | G14: Horizontal Line
A15: 12 | B15: 20.8 | C15: 219.6684107 | D15: -5.2304232 | G15: 0 | H15: 0
A16: 13 | B16: 21.7 | C16: 215.0761126 | D16: -4.974683751 | G16: =G12 -> 58.3 | H16: 0
A17: 14 | B17: 22.6 | C17: 210.71398 | D17: -4.718944303
A18: 15 | B18: 23.5 | C18: 206.5820129 | D18: -4.463204854 | G18: Diagnonal Line
A19: 16 | B19: 24.4 | C19: 202.6802112 | D19: -4.207465405 | G19: 0 | H19: 200
A20: 17 | B20: 25.3 | C20: 199.0085751 | D20: -3.951725956 | G20: 997 | H20: 0
A21: 18 | B21: 26.2 | C21: 195.5671045 | D21: -3.695986507
A22: 19 | B22: 27.1 | C22: 192.3557994 | D22: -3.440247059
A23: 20 | B23: 28.0 | C23: 189.3746598 | D23: -3.18450761 | G23: Point on curve
A24: 21 | B24: 28.9 | C24: 186.6236857 | D24: -2.928768161 | G24: x= | H24: =G12*H5 -> 5.247
A25: 22 | B25: 29.8 | C25: 184.1028771 | D25: -2.673028712 | F25: x0 = | G25: =x0 -> 58.3 | H25: =LOOKUP(x0+0.001,B3:B104,C3:C104) -> 220.1199007
A26: 23 | B26: 30.7 | C26: 181.812234 | D26: -2.417289264 | F26: y0 = | G26: =Area/x0+2*k -> 1.200686106
A27: 24 | B27: 31.6 | C27: 179.7517564 | D27: -2.161549815
A28: 25 | B28: 32.5 | C28: 177.9214444 | D28: -1.905810366 | G28: =x0 -> 58.3 | H28: 0 | I28: 0
A29: 26 | B29: 33.4 | C29: 176.3212978 | D29: -1.650070917 | G29: =x0 -> 58.3 | H29: =LOOKUP(x0+0.001,B3:B104,C3:C104) -> 220.1199007 | I29: =LOOKUP(x0+0.001,B3:B104,D3:D104) -> 5.2548942
A30: 27 | B30: 34.3 | C30: 174.9513167 | D30: -1.394331468
A31: 28 | B31: 35.2 | C31: 173.8115011 | D31: -1.13859202
A32: 29 | B32: 36.1 | C32: 172.9018511 | D32: -0.8828525708
A33: 30 | B33: 37.0 | C33: 172.2223665 | D33: -0.627113122
A34: 31 | B34: 37.9 | C34: 171.7730475 | D34: -0.3713736732
A35: 32 | B35: 38.8 | C35: =x^2/16+(L-x)^2/4/PI() -> 171.5538939 | D35: =x/8-(L-x)/2/PI() -> -0.1156342245
A36: 33 | B36: =B35+dd -> 39.7 | C36: 171.5649059 | D36: 0.1401052243
A37: 34 | B37: 40.6 | C37: 171.8060833 | D37: 0.3958446731
A38: 35 | B38: 41.5 | C38: 172.2774263 | D38: 0.6515841219
A39: 36 | B39: 42.4 | C39: 172.9789347 | D39: 0.9073235707
A40: 37 | B40: 43.3 | C40: 173.9106087 | D40: 1.163063019
A41: 38 | B41: 44.2 | C41: 175.0724482 | D41: 1.418802468
A42: 39 | B42: 45.1 | C42: 176.4644531 | D42: 1.674541917
A43: 40 | B43: 46.0 | C43: 178.0866236 | D43: 1.930281366
A44: 41 | B44: 46.9 | C44: 179.9389596 | D44: 2.186020815
A45: 42 | B45: 47.8 | C45: 182.0214611 | D45: 2.441760263
A46: 43 | B46: 48.7 | C46: 184.3341281 | D46: 2.697499712
A47: 44 | B47: 49.6 | C47: 186.8769606 | D47: 2.953239161
A48: 45 | B48: 50.5 | C48: 189.6499586 | D48: 3.20897861
A49: 46 | B49: 51.4 | C49: 192.6531221 | D49: 3.464718058
A50: 47 | B50: 52.3 | C50: 195.8864511 | D50: 3.720457507
A51: 48 | B51: 53.2 | C51: 199.3499456 | D51: 3.976196956
A52: 49 | B52: 54.1 | C52: 203.0436056 | D52: 4.231936405
A53: 50 | B53: 55.0 | C53: 206.9674311 | D53: 4.487675854
A54: 51 | B54: 55.9 | C54: 211.1214221 | D54: 4.743415302
A55: 52 | B55: 56.8 | C55: 215.5055786 | D55: 4.999154751
A56: 53 | B56: 57.7 | C56: 220.1199007 | D56: 5.2548942
A57: 54 | B57: 58.6 | C57: 224.9643882 | D57: 5.510633649
A58: 55 | B58: 59.5 | C58: 230.0390412 | D58: 5.766373098
A59: 56 | B59: 60.4 | C59: 235.3438598 | D59: 6.022112546
A60: 57 | B60: 61.3 | C60: 240.8788438 | D60: 6.277851995
A61: 58 | B61: 62.2 | C61: 246.6439934 | D61: 6.533591444
A62: 59 | B62: 63.1 | C62: 252.6393084 | D62: 6.789330893
A63: 60 | B63: 64.0 | C63: 258.864789 | D63: 7.045070341
A64: 61 | B64: 64.9 | C64: 265.320435 | D64: 7.30080979
A65: 62 | B65: 65.8 | C65: 272.0062466 | D65: 7.556549239
A66: 63 | B66: 66.7 | C66: 278.9222237 | D66: 7.812288688
A67: 64 | B67: 67.6 | C67: =x^2/16+(L-x)^2/4/PI() -> 286.0683662 | D67: =x/8-(L-x)/2/PI() -> 8.068028137
A68: 65 | B68: =B67+dd -> 68.5 | C68: 293.4446743 | D68: 8.323767585
A69: 66 | B69: 69.4 | C69: 301.0511479 | D69: 8.579507034
A70: 67 | B70: 70.3 | C70: 308.887787 | D70: 8.835246483
A71: 68 | B71: 71.2 | C71: 316.9545916 | D71: 9.090985932
A72: 69 | B72: 72.1 | C72: 325.2515616 | D72: 9.34672538
A73: 70 | B73: 73.0 | C73: 333.7786972 | D73: 9.602464829
A74: 71 | B74: 73.9 | C74: 342.5359983 | D74: 9.858204278
A75: 72 | B75: 74.8 | C75: 351.5234649 | D75: 10.11394373
A76: 73 | B76: 75.7 | C76: 360.7410971 | D76: 10.36968318
A77: 74 | B77: 76.6 | C77: 370.1888947 | D77: 10.62542262
A78: 75 | B78: 77.5 | C78: 379.8668578 | D78: 10.88116207
A79: 76 | B79: 78.4 | C79: 389.7749864 | D79: 11.13690152
A80: 77 | B80: 79.3 | C80: 399.9132805 | D80: 11.39264097
A81: 78 | B81: 80.2 | C81: 410.2817401 | D81: 11.64838042
A82: 79 | B82: 81.1 | C82: 420.8803653 | D82: 11.90411987
A83: 80 | B83: 82.0 | C83: 431.7091559 | D83: 12.15985932
A84: 81 | B84: 82.9 | C84: 442.768112 | D84: 12.41559877
A85: 82 | B85: 83.8 | C85: 454.0572337 | D85: 12.67133821
A86: 83 | B86: 84.7 | C86: 465.5765208 | D86: 12.92707766
A87: 84 | B87: 85.6 | C87: 477.3259735 | D87: 13.18281711
A88: 85 | B88: 86.5 | C88: 489.3055916 | D88: 13.43855656
A89: 86 | B89: 87.4 | C89: 501.5153753 | D89: 13.69429601
A90: 87 | B90: 88.3 | C90: 513.9553244 | D90: 13.95003546
A91: 88 | B91: 89.2 | C91: 526.6254391 | D91: 14.20577491
A92: 89 | B92: 90.1 | C92: 539.5257193 | D92: 14.46151436
A93: 90 | B93: 91.0 | C93: 552.656165 | D93: 14.7172538
A94: 91 | B94: 91.9 | C94: 566.0167761 | D94: 14.97299325
A95: 92 | B95: 92.8 | C95: 579.6075528 | D95: 15.2287327
A96: 93 | B96: 93.7 | C96: 593.428495 | D96: 15.48447215
A97: 94 | B97: 94.6 | C97: 607.4796027 | D97: 15.7402116
A98: 95 | B98: 95.5 | C98: 621.7608759 | D98: 15.99595105
A99: 96 | B99: 96.4 | C99: 636.2723146 | D99: 16.2516905
A100: 97 | B100: 97.3 | C100: 651.0139188 | D100: 16.50742995
A101: 98 | B101: 98.2 | C101: 665.9856885 | D101: 16.7631694
A102: 99 | B102: 99.1 | C102: 681.1876237 | D102: 17.01890884
A103: 100 | B103: 100.0 | C103: 696.6197244 | D103: 17.27464829

Sheet Sheet3
A1: =xMin -> 10 | B1: =9 -> 9
A2: =A1+dx -> 10.09 | B2: =9 -> 9
A3: 10.18 | B3: =9 -> 9
A4: 10.27 | B4: =9 -> 9
A5: 10.36 | B5: =9 -> 9
A6: 10.45 | B6: =9 -> 9
A7: 10.54 | B7: =9 -> 9
A8: 10.63 | B8: =9 -> 9
A9: 10.72 | B9: =9 -> 9
A10: 10.81 | B10: =9 -> 9
A11: 10.9 | B11: =9 -> 9
A12: 10.99 | B12: =9 -> 9
A13: 11.08 | B13: =9 -> 9
A14: 11.17 | B14: =9 -> 9
A15: 11.26 | B15: =9 -> 9
A16: 11.35 | B16: =9 -> 9
A17: 11.44 | B17: =9 -> 9
A18: 11.53 | B18: =9 -> 9
A19: 11.62 | B19: =9 -> 9
A20: 11.71 | B20: =9 -> 9
A21: 11.8 | B21: =9 -> 9
A22: 11.89 | B22: =9 -> 9
A23: 11.98 | B23: =9 -> 9
A24: 12.07 | B24: =9 -> 9
A25: 12.16 | B25: =9 -> 9
A26: 12.25 | B26: =9 -> 9
A27: 12.34 | B27: =9 -> 9
A28: 12.43 | B28: =9 -> 9
A29: 12.52 | B29: =9 -> 9
A30: 12.61 | B30: =9 -> 9
A31: 12.7 | B31: =9 -> 9
A32: 12.79 | B32: =9 -> 9
A33: 12.88 | B33: =9 -> 9
A34: 12.97 | B34: =9 -> 9
A35: 13.06 | B35: =9 -> 9
A36: 13.15 | B36: =9 -> 9
A37: 13.24 | B37: =9 -> 9
A38: 13.33 | B38: =9 -> 9
A39: 13.42 | B39: =9 -> 9
A40: 13.51 | B40: =9 -> 9
A41: 13.6 | B41: =9 -> 9
A42: 13.69 | B42: =9 -> 9
A43: 13.78 | B43: =9 -> 9
A44: 13.87 | B44: =9 -> 9
A45: 13.96 | B45: =9 -> 9
A46: 14.05 | B46: =9 -> 9
A47: 14.14 | B47: =9 -> 9
A48: 14.23 | B48: =9 -> 9
A49: 14.32 | B49: =9 -> 9
A50: 14.41 | B50: =9 -> 9
A51: 14.5 | B51: =9 -> 9
A52: 14.59 | B52: =9 -> 9
A53: 14.68 | B53: =9 -> 9
A54: 14.77 | B54: =9 -> 9
A55: 14.86 | B55: =9 -> 9
A56: 14.95 | B56: =9 -> 9
A57: 15.04 | B57: =9 -> 9
A58: 15.13 | B58: =9 -> 9
A59: 15.22 | B59: =9 -> 9
A60: 15.31 | B60: =9 -> 9
A61: 15.4 | B61: =9 -> 9
A62: 15.49 | B62: =9 -> 9
A63: 15.58 | B63: =9 -> 9
A64: 15.67 | B64: =9 -> 9
A65: 15.76 | B65: =9 -> 9
A66: =A65+dx -> 15.85 | B66: =9 -> 9
A67: 15.94 | B67: =9 -> 9
A68: 16.03 | B68: =9 -> 9
A69: 16.12 | B69: =9 -> 9
A70: 16.21 | B70: =9 -> 9
A71: 16.3 | B71: =9 -> 9
A72: 16.39 | B72: =9 -> 9
A73: 16.48 | B73: =9 -> 9
A74: 16.57 | B74: =9 -> 9
A75: 16.66 | B75: =9 -> 9
A76: 16.75 | B76: =9 -> 9
A77: 16.84 | B77: =9 -> 9
A78: 16.93 | B78: =9 -> 9
A79: 17.02 | B79: =9 -> 9
A80: 17.11 | B80: =9 -> 9
A81: 17.2 | B81: =9 -> 9
A82: 17.29 | B82: =9 -> 9
A83: 17.38 | B83: =9 -> 9
A84: 17.47 | B84: =9 -> 9
A85: 17.56 | B85: =9 -> 9
A86: 17.65 | B86: =9 -> 9
A87: 17.74 | B87: =9 -> 9
A88: 17.83 | B88: =9 -> 9
A89: 17.92 | B89: =9 -> 9
A90: 18.01 | B90: =9 -> 9
A91: 18.1 | B91: =9 -> 9
A92: 18.19 | B92: =9 -> 9
A93: 18.28 | B93: =9 -> 9
A94: 18.37 | B94: =9 -> 9
A95: 18.46 | B95: =9 -> 9
A96: 18.55 | B96: =9 -> 9
A97: 18.64 | B97: =9 -> 9
A98: 18.73 | B98: =9 -> 9
A99: 18.82 | B99: =9 -> 9
A100: 18.91 | B100: =9 -> 9
A101: 19 | B101: =9 -> 9
A102: 19.09 | B102: =9 -> 9
A103: 19.18 | B103: =9 -> 9
A104: 19.27 | B104: =9 -> 9
A105: 19.36 | B105: =9 -> 9
A106: 19.45 | B106: =9 -> 9
A107: 19.54 | B107: =9 -> 9
A108: 19.63 | B108: =9 -> 9
A109: 19.72 | B109: =9 -> 9
A110: 19.81 | B110: =9 -> 9
A111: 19.9 | B111: =9 -> 9
A112: 19.99 | B112: =9 -> 9
A113: 20.08 | B113: =9 -> 9
A114: 20.17 | B114: =9 -> 9
A115: 20.26 | B115: =9 -> 9
A116: 20.35 | B116: =9 -> 9
A117: 20.44 | B117: =9 -> 9
A118: 20.53 | B118: =9 -> 9
A119: 20.62 | B119: =9 -> 9
A120: 20.71 | B120: =9 -> 9
A121: 20.8 | B121: =9 -> 9
A122: 20.89 | B122: =9 -> 9
A123: 20.98 | B123: =9 -> 9
A124: 21.07 | B124: =9 -> 9
A125: 21.16 | B125: =9 -> 9
A126: 21.25 | B126: =9 -> 9
A127: 21.34 | B127: =9 -> 9
A128: 21.43 | B128: =9 -> 9
A129: 21.52 | B129: =9 -> 9
A130: =A129+dx -> 21.61 | B130: =9 -> 9
A131: 21.7 | B131: =9 -> 9
A132: 21.79 | B132: =9 -> 9
A133: 21.88 | B133: =9 -> 9
A134: 21.97 | B134: =9 -> 9
A135: 22.06 | B135: =9 -> 9
A136: 22.15 | B136: =9 -> 9
A137: 22.24 | B137: =9 -> 9
A138: 22.33 | B138: =9 -> 9
A139: 22.42 | B139: =9 -> 9
A140: 22.51 | B140: =9 -> 9
A141: 22.6 | B141: =9 -> 9
A142: 22.69 | B142: =9 -> 9
A143: 22.78 | B143: =9 -> 9
A144: 22.87 | B144: =9 -> 9
A145: 22.96 | B145: =9 -> 9
A146: 23.05 | B146: =9 -> 9
A147: 23.14 | B147: =9 -> 9
A148: 23.23 | B148: =9 -> 9
A149: 23.32 | B149: =9 -> 9
A150: 23.41 | B150: =9 -> 9
A151: 23.5 | B151: =9 -> 9
A152: 23.59 | B152: =9 -> 9
A153: 23.68 | B153: =9 -> 9
A154: 23.77 | B154: =9 -> 9
A155: 23.86 | B155: =9 -> 9
A156: 23.95 | B156: =9 -> 9
A157: 24.04 | B157: =9 -> 9
A158: 24.13 | B158: =9 -> 9
A159: 24.22 | B159: =9 -> 9
A160: 24.31 | B160: =9 -> 9
A161: 24.4 | B161: =9 -> 9
A162: 24.49 | B162: =9 -> 9
A163: 24.58 | B163: =9 -> 9
A164: 24.67 | B164: =9 -> 9
A165: 24.76 | B165: =9 -> 9
A166: 24.85 | B166: =9 -> 9
A167: 24.94 | B167: =9 -> 9
A168: 25.03 | B168: =9 -> 9
A169: 25.12 | B169: =9 -> 9
A170: 25.21 | B170: =9 -> 9
A171: 25.3 | B171: =9 -> 9
A172: 25.39 | B172: =9 -> 9
A173: 25.48 | B173: =9 -> 9
A174: 25.57 | B174: =9 -> 9
A175: 25.66 | B175: =9 -> 9
A176: 25.75 | B176: =9 -> 9
A177: 25.84 | B177: =9 -> 9
A178: 25.93 | B178: =9 -> 9
A179: 26.02 | B179: =9 -> 9
A180: 26.11 | B180: =9 -> 9
A181: 26.2 | B181: =9 -> 9
A182: 26.29 | B182: =9 -> 9
A183: 26.38 | B183: =9 -> 9
A184: 26.47 | B184: =9 -> 9
A185: 26.56 | B185: =9 -> 9
A186: 26.65 | B186: =9 -> 9
A187: 26.74 | B187: =9 -> 9
A188: 26.83 | B188: =9 -> 9
A189: 26.92 | B189: =9 -> 9
A190: 27.01 | B190: =9 -> 9
A191: 27.1 | B191: =9 -> 9
A192: 27.19 | B192: =9 -> 9
A193: 27.28 | B193: =9 -> 9
A194: =A193+dx -> 27.37 | B194: =9 -> 9
A195: 27.46 | B195: =9 -> 9
A196: 27.55 | B196: =9 -> 9
A197: 27.64 | B197: =9 -> 9
A198: 27.73 | B198: =9 -> 9
A199: 27.82 | B199: =9 -> 9
A200: 27.91 | B200: =9 -> 9
... 803 more rows
